fUSD/lending_fUSD_20240114
["ID","MTS","AMOUNT","RATE_DAILY","PERIOD"]
[311554256,1705228239375,-8027.10733958,0.00022999,2]
[311554257,1705228239385,-288940.59187123,0.00022999,2]
[311554258,1705228239394,-1184.20150482,0.00022999,2]
[311554259,1705228239404,-150.0,0.00022999,2]
[311554260,1705228239413,-150.0,0.00022999,2]
[311554261,1705228239422,-150.0,0.00022999,2]
[311554262,1705228239431,-150.0,0.00022999,2]
[311554263,1705228239440,-150.0,0.00022999,2]
[311554264,1705228239449,-150.0,0.00022999,2]
[311554265,1705228239459,-150.0,0.00022999,2]
[311554266,1705228239468,-150.0,0.00022999,2]
[311554267,1705228239477,-150.0,0.00022999,2]
[311554268,1705228239486,-150.0,0.00022999,2]
[311554269,1705228239496,-150.0,0.00022999,2]
[311554270,1705228239505,-150.0,0.00022999,2]
[311554271,1705228239514,-150.0,0.00022999,2]
[311554272,1705228239523,-150.0,0.00022999,2]
[311554273,1705228239532,-150.0,0.00022999,2]
[311554274,1705228239542,-150.0,0.00022999,2]
[311554275,1705228239551,-151.0,0.00022999,7]
[311554276,1705228239559,-151.0,0.00022999,7]
[311554277,1705228239569,-624.911735,0.00023,7]
[311554278,1705228239578,-624.911735,0.00023,7]
[311554279,1705228239587,-158.922982,0.00023,7]
[311554280,1705228239596,-407.505616,0.00023,7]
[311554281,1705228239605,-407.505616,0.00023,7]
[311554282,1705228239614,-152.69065,0.00023,7]
[311554283,1705228239624,-184.715239,0.00023,7]
[311554284,1705228239633,-184.715239,0.00023,7]
[311554285,1705228239642,-475.63069,0.00023,7]
[311554286,1705228239651,-475.63069,0.00023,7]
[311554287,1705228239660,-151.0,0.00023,7]
[311554288,1705228239670,-171.205626,0.00023,7]
[311554289,1705228239678,-171.205626,0.00023,7]
[311554290,1705228239687,-292.923789,0.00023,7]
[311554291,1705228239698,-292.923789,0.00023,7]
[311554292,1705228239707,-175.722675,0.00023,7]
[311554293,1705228239716,-151.0,0.00023,7]
[311554294,1705228239725,-151.0,0.00023,7]
[311554295,1705228239734,-151.0,0.00023,7]
[311554297,1705228239743,-301496.66895924,0.00023,2]
[311554299,1705228239757,-1633.08320922,0.00023,2]
[311554301,1705228239773,-6658.91040818,0.00023,2]
[311554306,1705228242380,-357.50949117,0.0002285,2]
[311554307,1705228242390,-3.17564955,0.00023,2]
[311554308,1705228242409,-15874.20559082,0.00023,2]
[311554337,1705228243150,-1700.33388006,0.00023,2]
[311554340,1705228243169,-390.54549983,0.00023,2]
[311554356,1705228243366,-1463.74454521,0.00022771,2]
[311554358,1705228243378,-789.46766988,0.00022999,2]
[311554360,1705228243390,-4168.52262627,0.00023,2]
[311554364,1705228243410,-310285.90642828,0.00023,2]
[311554366,1705228243421,-555617.5182461,0.00023,2]
[311554369,1705228243435,-1073.71678472,0.00023,2]
[311554372,1705228243448,-695.22988257,0.00023,2]
[311554376,1705228243489,-151.0,0.00023,7]
[311554379,1705228243501,-7207.04565304,0.00023,2]
[311554383,1705228248349,-357.50949117,0.000229,2]
[311554384,1705228248359,-401.20702061,0.00022999,2]
[311554385,1705228248375,-305.61257425,0.00022999,2]
[311554386,1705228248398,-1046.992628,0.00022999,2]
[311554387,1705228248973,1391.02243992,0.00018567,2]
[311554388,1705228248993,2000.0,0.00018567,2]
[311554389,1705228249013,2000.0,0.00018567,2]
[311554390,1705228249034,408.97756008,0.00018567,2]
[311554391,1705228266783,360.33822996,0.00018398,2]
[311554392,1705228338449,222.39,0.00020387,2]
[311554394,1705228590063,706.96,0.00022003,2]
[311554395,1705228620418,285.02,0.00022037,2]
[311554396,1705228642489,16.31420996,0.000222,2]
[311554397,1705228642512,142.42579004,0.000222,2]
[311554398,1705228666433,230.14933227,0.00022037,4]
[311554399,1705228706774,1000.0,0.00021849,2]
[311554400,1705228789235,211.27,0.0001995,2]
[311554401,1705228789458,211.27,0.00022214,2]
[311554402,1705228893707,204.88487769,0.00021504,2]
[311554403,1705228893728,3.11512231,0.00021504,2]
[311554404,1705228900852,153.17,0.00021878,2]
[311554405,1705229003736,165.18,0.00017485,2]
[311554406,1705229064328,266.01,0.00021975,2]
[311554407,1705229112632,159.94,0.00022046,2]
[311554408,1705229202982,200.0,0.00021772,2]
[311554409,1705229292306,168.70763105,0.00022297,2]
[311554412,1705229399364,190.14,0.00019855,2]
[311554413,1705229399568,190.14,0.00022118,2]
[311554414,1705229400955,-150.0,0.00034815,120]
[311554415,1705229400984,-2350.48676671,0.00035,120]
[311554416,1705229401009,-44.96589983,0.00035,120]
[311554417,1705229401210,-150.0,0.00035,120]
[311554418,1705229401236,-150.0,0.00035174,120]
[311554419,1705229401271,-150.0,0.00036027,120]
[311554431,1705229432629,-150.0,0.00022354,2]
[311554432,1705229432639,-232.296915,0.00022354,2]
[311554433,1705229432651,-295.22264433,0.00022354,2]
[311554434,1705229432661,-485.55817538,0.0002237,2]
[311554435,1705229432672,-558.692,0.0002237,2]
[311554436,1705229432799,-6982.8571642,0.0002237,2]
[311554437,1705229432808,-150.0,0.00022397,2]
[311554438,1705229432818,-150.0,0.00022397,2]
[311554439,1705229432827,-1070.8395,0.00022398,2]
[311554440,1705229432836,-7470.1409,0.00022398,2]
[311554441,1705229432845,-237.94,0.0002245,2]
[311554442,1705229432854,-150.0,0.00022466,2]
[311554443,1705229432864,-244.64133608,0.00022496,2]
[311554444,1705229432873,-802.97076814,0.00022496,2]
[311554445,1705229432882,-371.21855219,0.00022496,2]
[311554446,1705229432891,-155.32153028,0.00022496,2]
[311554447,1705229432901,-3242.89715255,0.00022496,2]
[311554448,1705229432910,-1000.0,0.00022496,2]
[311554449,1705229432919,-2078.37854192,0.00022497,2]
[311554450,1705229432948,-3924.14133732,0.00022497,2]
[311554451,1705229432967,-7354.64342809,0.00022497,2]
[311554452,1705229432978,-5635.44715854,0.00022497,2]
[311554453,1705229432987,-169.9013,0.00022498,2]
[311554454,1705229432996,-2500.0,0.00022498,2]
[311554455,1705229433005,-168.70763105,0.00022498,2]
[311554456,1705229433014,-1109.29796354,0.00022498,2]
[311554457,1705229433022,-337.85600719,0.00022498,2]
[311554458,1705229433031,-1109.29796347,0.00022555,2]
[311554459,1705229433041,-1000.0,0.00022596,2]
[311554460,1705229433050,-500.0,0.00022598,2]
[311554461,1705229433059,-1000.0,0.00022598,2]
[311554462,1705229433068,-245000.0,0.00022598,2]
[311554463,1705229433077,-100000.0,0.00022598,2]
[311554464,1705229433086,-1000.0,0.00022598,2]
[311554465,1705229433095,-1109.29796347,0.00022613,2]
[311554466,1705229433104,-1109.29796347,0.0002267,2]
[311554467,1705229433113,-168.70763105,0.00022699,2]
[311554468,1705229433122,-1109.29796347,0.00022728,2]
[311554469,1705229433131,-498.38564661,0.00022768,2]
[311554470,1705229433140,-19467.50516447,0.0002277,2]
[311554471,1705229433152,-112279.46199,0.0002277,2]
[311554472,1705229433161,-1109.29796347,0.00022785,2]
[311554473,1705229433170,-167.0,0.00022793,2]
[311554474,1705229433180,-1109.29796347,0.00022843,2]
[311554475,1705229433189,-800.0,0.00022877,2]
[311554476,1705229433198,-177.67596944,0.0002289,2]
[311554477,1705229433211,-5000.0,0.00022899,2]
[311554478,1705229433221,-250.0,0.000229,2]
[311554479,1705229433230,-695.7523,0.000229,2]
[311554480,1705229433239,-53671.50980034,0.000229,2]
[311554481,1705229433248,-1461.77399013,0.000229,2]
[311554482,1705229433257,-168.70763105,0.000229,2]
[311554483,1705229433266,-1109.29796347,0.000229,2]
[311554484,1705229433276,-1699.36232147,0.000229,2]
[311554485,1705229433285,-1351.92474313,0.000229,2]
[311554486,1705229433294,-330.79897173,0.000229,2]
[311554487,1705229433303,-167.82362519,0.000229,2]
[311554488,1705229433312,-675.05876326,0.000229,2]
[311554489,1705229433322,-266.01,0.00022954,2]
[311554490,1705229433331,-153.17,0.00022972,2]
[311554491,1705229433340,-177.67596944,0.0002299,2]
[311554492,1705229433349,-177.67596944,0.0002299,2]
[311554493,1705229433359,-792.1354832,0.00022997,3]
[311554494,1705229433368,-1917.8230802,0.00022997,2]
[311554495,1705229433377,-1535.2187934,0.00022997,2]
[311554496,1705229433387,-1547.13151849,0.00022998,2]
[311554497,1705229433398,-223.68887622,0.00022998,2]
[311554498,1705229433407,-264.02450714,0.00022998,2]
[311554499,1705229433416,-307.31529785,0.00022998,2]
[311554500,1705229433425,-696.20046466,0.00022998,2]
[311554501,1705229433435,-682.66776446,0.00022998,2]
[311554502,1705229433445,-3462.93270798,0.00022998,2]
[311554503,1705229433454,-155.0,0.00022998,2]
[311554504,1705229433463,-410.44186514,0.00022998,2]
[311554505,1705229433474,-44658.44625313,0.00022998,2]
[311554506,1705229433483,-1247.7264509,0.00022999,2]
[311554507,1705229433492,-237.42975326,0.00022999,10]
[311554508,1705229433501,-1381.56842229,0.00022999,2]
[311554509,1705229433510,-1100.75,0.00022999,8]
[311554510,1705229433519,-150.0,0.00022999,2]
[311554511,1705229433528,-150.0,0.00022999,2]
[311554512,1705229433538,-150.0,0.00022999,2]
[311554513,1705229433547,-150.0,0.00022999,2]
[311554514,1705229433556,-150.0,0.00022999,2]
[311554515,1705229433566,-150.0,0.00022999,2]
[311554516,1705229433575,-150.0,0.00022999,2]
[311554517,1705229433584,-150.0,0.00022999,2]
[311554518,1705229433593,-150.0,0.00022999,2]
[311554519,1705229433602,-150.0,0.00022999,2]
[311554520,1705229433611,-150.0,0.00022999,2]
[311554521,1705229433620,-150.0,0.00022999,2]
[311554522,1705229433630,-118653.69321534,0.00023,2]
[311554523,1705229434081,-65677.24977006,0.00023,2]
[311554530,1705229438189,-359.40515285,0.000229,2]
[311554532,1705229438199,-690.78421114,0.00022999,2]
[311554534,1705229438208,-373.25063601,0.00023,2]
[311554537,1705229438385,-3174.66396125,0.00023,2]
[311554538,1705229438396,-108881.46065074,0.00023,2]
[311554539,1705229438443,-763.56,0.00023,2]
[311554540,1705229438500,-803385.04878527,0.00023,2]
[311554541,1705229438509,-729785.88865393,0.00023,2]
[311554542,1705229438557,-10064.4442924,0.00023,2]
[311554543,1705229438614,-392.44338974,0.00023,2]
[311554552,1705229441366,-692.84735755,0.00023,2]
[311554563,1705229441971,-4413.66412957,0.00023,2]
[311554564,1705229441996,-4578.95737862,0.00023,2]
[311554565,1705229442011,-2421.31069343,0.00023,2]
[311554566,1705229442034,-338.64724169,0.00023,2]
[311554567,1705229442067,150.0,0.00021497,2]
[311554568,1705229442802,150.0,0.00022045,2]
[311554586,1705229443112,-345.39210557,0.00022999,2]
[311554589,1705229443123,-945.85367754,0.00023,2]
[311554591,1705229443136,-833.79910387,0.00023,2]
[311554593,1705229443167,-1380.74397775,0.00023,2]
[311554594,1705229443405,-2493.2152024,0.00023,2]
[311554595,1705229443442,-500.0,0.00023,2]
[311554596,1705229443519,-500.0,0.00023,2]
[311554597,1705229443532,-666.59723267,0.00023,2]
[311554599,1705229446191,-150.0,0.00022593,2]
[311554600,1705229446202,-408.269,0.00023,2]
[311554601,1705229446270,-4152.33834319,0.00023,2]
[311554602,1705229446489,-858.33591374,0.00023,2]
[311554611,1705229467374,203.59724664,0.00022078,2]
[311554612,1705229467397,2000.0,0.00022078,2]
[311554613,1705229467424,637.56456317,0.00022078,2]
[311554614,1705229474226,165.18,0.00018212,2]
[311554615,1705229527482,150.0,0.00022,2]
[311554616,1705229543368,1047.25543683,0.00021596,2]
[311554617,1705229543389,1946.08298685,0.00021596,2]
[311554618,1705229559519,53.91701315,0.00022033,2]
[311554619,1705229559540,176.62298685,0.00022033,2]
[311554620,1705229563347,938.00351291,0.00021596,2]
[311554621,1705229565496,349.77907732,0.00021371,7]
[311554623,1705229595735,150.0,0.00022,2]
[311554625,1705229633877,250.0,0.00021966,2]
[311554626,1705229655840,135.59442292,0.0002195,2]
[311554627,1705229655863,704.40557708,0.0002195,2]
[311554629,1705229775471,345.0,0.00017996,2]
[311554630,1705229788170,155.0,0.00019755,2]
[311554631,1705229795579,324.26341572,0.00017996,2]
[311554632,1705229810159,155.24300784,0.00016196,2]
[311554633,1705229871735,231.72,0.00021925,2]
[311554634,1705229916959,84.36799936,0.00019991,2]
[311554635,1705229916983,106.44200064,0.00019991,2]
[311554636,1705229917164,190.81,0.00022255,2]
[311554637,1705229976961,215.17,0.00021924,2]
[311554638,1705230007673,516.05068541,0.00022299,2]
[311554639,1705230093526,250.0,0.00022,2]
[311554640,1705230093715,328.0,0.00021916,2]
[311554641,1705230094809,252.91694918,0.00022274,2]
[311554642,1705230144989,140.61036477,0.00021982,2]
[311554643,1705230145013,508.77338525,0.00021982,2]
[311554644,1705230146163,1491.22661475,0.00021936,2]
[311554645,1705230146184,363.73338525,0.00021936,2]
[311554646,1705230157440,-300.0,0.000223,8]
[311554647,1705230177017,154.18456038,0.00022,2]
[311554649,1705230229946,-207.0,0.00022353,2]
[311554650,1705230229968,-712.31,0.00022396,2]
[311554651,1705230229990,-158.18730557,0.000224,2]
[311554652,1705230230011,-600.0,0.000224,8]
[311554653,1705230230032,-1000.0,0.00022498,2]
[311554654,1705230243102,150.0,0.00022013,2]
[311554655,1705230265117,-1000.0,0.000225,8]
[311554656,1705230272138,161.78283669,0.00022428,3]
[311554657,1705230278676,-6029.0,0.00022542,2]
[311554658,1705230282431,187.99,0.00022036,2]
[311554659,1705230362592,150.06,0.00022059,2]
[311554660,1705230362810,150.06,0.00022216,2]
[311554661,1705230363193,150.06,0.00022374,2]
[311554663,1705230382536,151.40114,0.00022314,3]
[311554664,1705230386848,151.40114,0.00022314,3]
[311554665,1705230387727,2000.0,0.00021975,2]
[311554666,1705230390618,192.81,0.00020067,2]
[311554667,1705230390829,192.81,0.00022331,2]
[311554668,1705230393661,500.0,0.00021975,2]
[311554669,1705230394086,151.40114,0.00022374,3]
[311554670,1705230396738,151.40114,0.00022374,3]
[311554671,1705230397629,151.40114,0.00022374,3]
[311554672,1705230398199,151.40114,0.00022374,3]
[311554673,1705230398858,151.40114,0.00022374,3]
[311554674,1705230399049,151.40114,0.00022374,3]
[311554675,1705230399452,151.40114,0.00022374,3]
[311554676,1705230399886,151.40114,0.00022374,3]
[311554677,1705230400326,151.40114,0.00022374,3]
[311554678,1705230400629,151.40114,0.00022374,3]
[311554679,1705230401114,151.40114,0.00022374,3]
[311554680,1705230401631,151.40114,0.00022374,3]
[311554681,1705230402201,151.40114,0.00022374,3]
[311554682,1705230402482,151.40114,0.00022374,3]
[311554683,1705230402973,151.40114,0.00022374,3]
[311554684,1705230403287,151.40114,0.00022374,3]
[311554685,1705230403819,151.40114,0.00022374,3]
[311554686,1705230404122,151.40114,0.00022374,3]
[311554687,1705230404635,151.40114,0.00022374,3]
[311554688,1705230405141,151.40114,0.00022374,3]
[311554689,1705230405460,151.40114,0.00022374,3]
[311554690,1705230409913,151.40114,0.00022374,3]
[311554691,1705230410407,151.40114,0.00022374,3]
[311554692,1705230410754,151.40114,0.00022374,3]
[311554693,1705230411226,50.27305443,0.00022374,3]
[311554694,1705230411249,101.12808557,0.00022374,3]
[311554695,1705230411796,151.40114,0.00022374,3]
[311554696,1705230412332,151.40114,0.00022374,3]
[311554697,1705230412648,151.40114,0.00022374,3]
[311554698,1705230413213,151.40114,0.00022374,3]
[311554699,1705230414025,151.40114,0.00022374,3]
[311554700,1705230414345,151.40114,0.00022374,3]
[311554701,1705230414933,151.40114,0.00022374,3]
[311554702,1705230415494,151.40114,0.00022374,3]
[311554703,1705230416107,151.40114,0.00022374,3]
[311554704,1705230416627,151.40114,0.00022374,3]
[311554705,1705230417349,165.86,0.00022178,2]
[311554706,1705230423198,200.0,0.000223,8]
[311554707,1705230425278,500.0,0.000224,8]
[311554709,1705230438893,151.40114,0.00022374,3]
[311554710,1705230439244,151.40114,0.00022374,3]
[311554711,1705230439642,151.40114,0.00022374,3]
[311554712,1705230440050,151.40114,0.00022374,3]
[311554713,1705230440443,151.40114,0.00022374,3]
[311554714,1705230440822,151.40114,0.00022374,3]
[311554715,1705230441178,151.40114,0.00022374,3]
[311554716,1705230441618,151.40114,0.00022374,3]
[311554717,1705230441985,151.40114,0.00022374,3]
[311554718,1705230442384,151.40114,0.00022374,3]
[311554719,1705230442822,151.40114,0.00022374,3]
[311554720,1705230443251,151.40114,0.00022374,3]
[311554721,1705230443712,151.40114,0.00022374,3]
[311554722,1705230444186,151.40114,0.00022374,3]
[311554723,1705230444713,151.40114,0.00022374,3]
[311554724,1705230445229,151.40114,0.00022374,3]
[311554725,1705230445481,151.40114,0.00022374,3]
[311554726,1705230450009,2267.68382886,0.00021908,2]
[311554727,1705230450033,37.04205437,0.00021908,2]
[311554728,1705230450056,491.22661475,0.00021908,2]
[311554729,1705230450079,491.22661475,0.00021908,2]
[311554730,1705230450102,491.22661475,0.00021908,2]
[311554731,1705230450124,491.22661475,0.00021908,2]
[311554732,1705230450147,2001.94851337,0.00021908,2]
[311554733,1705230450170,119.0591444,0.00021908,2]
[311554735,1705230454647,476.42,0.00021908,2]
[311554737,1705230470231,151.40114,0.000223,3]
[311554738,1705230479444,151.40114,0.000223,3]
[311554740,1705230494860,162.34393,0.000223,3]
[311554741,1705230503010,750.0,0.00021859,2]
[311554742,1705230574598,191.32315897,0.00021838,2]
[311554743,1705230574623,546.27684103,0.00021838,2]
[311554744,1705230589840,216.68,0.00021838,2]
[311554746,1705230632310,-454.54778206,0.000225,8]
[311554747,1705230632368,-245.45221794,0.000225,8]
[311554748,1705230632377,-150.06,0.00022531,2]
[311554749,1705230632387,-1000.0,0.000226,8]
[311554750,1705230632397,-150.06,0.00022689,2]
[311554751,1705230632406,-738.46,0.00022694,2]
[311554752,1705230632420,-153.72599872,0.000227,2]
[311554753,1705230632430,-1200.0,0.000227,8]
[311554754,1705230632439,-155.0,0.00022701,2]
[311554755,1705230632449,-724.8,0.00022727,2]
[311554756,1705230632459,-727.3,0.00022737,2]
[311554757,1705230632470,-74.00457709,0.00022743,2]
[311554758,1705230632483,-75.99542291,0.00022743,2]
[311554759,1705230632493,-153.7259987,0.0002275,2]
[311554760,1705230632503,-150.0,0.00022752,2]
[311554761,1705230632513,-150.0,0.00022765,2]
[311554762,1705230632522,-150.0,0.00022795,2]
[311554763,1705230632532,-269.13461639,0.00022798,2]
[311554764,1705230632549,-445.65582079,0.00022798,2]
[311554765,1705230632559,-150.0,0.00022798,2]
[311554766,1705230632568,-300.80594898,0.00022799,2]
[311554767,1705230632581,-386.26961565,0.00022799,2]
[311554768,1705230632593,-1297.77853237,0.00022799,2]
[311554769,1705230632603,-177.82017161,0.000228,2]
[311554770,1705230632613,-236.97392319,0.000228,2]
[311554771,1705230632635,-17912.04391326,0.000228,2]
[311554772,1705230632646,-965.39069473,0.000228,2]
[311554773,1705230632659,-514.09738186,0.000228,2]
[311554774,1705230632670,-6971.26488696,0.000228,2]
[311554775,1705230632680,-2232.01774412,0.000228,2]
[311554776,1705230632697,-314.19872509,0.000228,2]
[311554777,1705230632710,-418.90217464,0.000228,2]
[311554778,1705230632723,-6184.63943289,0.000228,2]
[311554779,1705230632735,-2344.85322979,0.000228,2]
[311554780,1705230632747,-3722.27159976,0.000228,2]
[311554785,1705230632762,-955.53334241,0.000228,2]
[311554790,1705230632778,-735.79980441,0.000228,2]
[311554792,1705230632790,-542.52416096,0.000228,2]
[311554808,1705230638320,-104786.88208593,0.000228,2]
[311554809,1705230638329,-1000.0,0.000228,2]
[311554810,1705230638339,-155.42792184,0.000228,2]
[311554811,1705230638348,-153.7259987,0.000228,2]
[311554812,1705230638358,-1465.1943,0.000228,2]
[311554813,1705230638370,-351.08560145,0.000228,2]
[311554814,1705230638379,-167.0,0.000228,2]
[311554815,1705230638389,-200.0,0.000228,8]
[311554816,1705230638398,-216.68,0.00022817,2]
[311554817,1705230638407,-155.42792184,0.00022825,2]
[311554818,1705230638417,-150.06,0.00022846,2]
[311554819,1705230638426,-150.0,0.0002285,2]
[311554820,1705230638435,-155.42792184,0.0002285,2]
[311554821,1705230638445,-150.0,0.0002286,2]
[311554822,1705230638454,-155.42792184,0.00022875,2]
[311554823,1705230638463,-560.47602202,0.00022883,2]
[311554824,1705230638474,-150.0,0.00022891,2]
[311554825,1705230638483,-362.28007638,0.00022898,2]
[311554826,1705230638492,-5000.0,0.00022899,2]
[311554827,1705230638501,-168.76884931,0.000229,2]
[311554828,1705230638510,-250.0,0.000229,2]
[311554829,1705230638529,-245000.0,0.000229,2]
[311554830,1705230638542,-500.0,0.000229,2]
[311554831,1705230638556,-86979.6525,0.000229,2]
[311554832,1705230638568,-2382.29924966,0.000229,2]
[311554833,1705230638580,-171.90790212,0.000229,2]
[311554834,1705230638593,-155.42792184,0.000229,2]
[311554835,1705230638603,-5780.51017422,0.000229,2]
[311554836,1705230638613,-1369.16523274,0.000229,2]
[311554837,1705230638624,-607.75538422,0.000229,2]
[311554838,1705230638636,-259.0104,0.000229,2]
[311554839,1705230638648,-319.64585666,0.000229,2]
[311554840,1705230638659,-200.0,0.000229,8]
[311554841,1705230638671,-150.0,0.00022905,2]
[311554842,1705230638683,-150.0,0.00022912,2]
[311554843,1705230638699,-150.0,0.0002292,2]
[311554844,1705230638711,-150.0,0.00022922,2]
[311554845,1705230638722,-150.0,0.00022929,2]
[311554846,1705230638735,-150.0,0.00022939,2]
[311554847,1705230638747,-150.0,0.00022946,2]
[311554848,1705230638757,-150.0,0.00022964,2]
[311554849,1705230638767,-150.0,0.00022967,2]
[311554850,1705230638779,-150.0,0.00022969,2]
[311554851,1705230638790,-150.0,0.00022979,2]
[311554852,1705230638802,-4651.86755386,0.0002298,2]
[311554853,1705230638813,-150.0,0.00022988,2]
[311554854,1705230638825,-150.0,0.00022989,2]
[311554856,1705230638836,-1337.5119256,0.00022997,2]
[311554858,1705230638848,-9364.9195017,0.00022997,2]
[311554860,1705230638861,-1983.8709422,0.00022997,2]
[311554863,1705230638873,-191.62148227,0.00022997,2]
[311554865,1705230638885,-6170.9134946,0.00022997,2]
[311554867,1705230638896,-172.69605279,0.00022999,2]
[311554869,1705230638906,-24989.50913916,0.00022999,2]
[311554871,1705230638916,-300.0,0.00022999,2]
[311554873,1705230638927,-300.0,0.00022999,2]
[311554876,1705230638940,-300.0,0.00022999,2]
[311554878,1705230638952,-300.0,0.00022999,2]
[311554880,1705230638963,-300.0,0.00022999,2]
[311554882,1705230638975,-300.0,0.00022999,2]
[311554885,1705230638987,-300.0,0.00022999,2]
[311554887,1705230638999,-300.0,0.00022999,2]
[311554890,1705230639012,-300.0,0.00022999,2]
[311554892,1705230639026,-300.0,0.00022999,2]
[311554894,1705230639037,-300.0,0.00022999,2]
[311554896,1705230639049,-300.0,0.00022999,2]
[311554898,1705230639060,-300.0,0.00022999,2]
[311554900,1705230639072,-300.0,0.00022999,2]
[311554903,1705230639084,-300.0,0.00022999,2]
[311554905,1705230639095,-300.0,0.00022999,2]
[311554907,1705230639107,-941118.84843406,0.00023,2]
[311554908,1705230639119,-76809.93967035,0.00023,2]
[311554909,1705230639141,-863.10512,0.00023,2]
[311554910,1705230639162,-440.7,0.00023,2]
[311554911,1705230639236,-360.72,0.00023,2]
[311554912,1705230639255,-782.77435987,0.00023,2]
[311554913,1705230639284,-394.14575585,0.00023,2]
[311554919,1705230641541,-172.69605279,0.00022999,2]
[311554920,1705230641554,-79.2663616,0.00023,2]
[311554921,1705230641712,-492.44453194,0.00023,2]
[311554922,1705230641726,-539.7997999,0.00023,2]
[311554923,1705230641741,-265.1286,0.00023,2]
[311554929,1705230643324,-500.0,0.000229,2]
[311554930,1705230643338,-1567.6451953,0.000229,2]
[311554931,1705230643381,-313.10995,0.000229,2]
[311554932,1705230643445,-1448.12382332,0.000229,2]
[311554933,1705230643456,-13240.94488801,0.00023,2]
[311554934,1705230643469,-6507.26916558,0.00023,2]
[311554935,1705230643483,-1287.23065248,0.00023,2]
[311554936,1705230643497,-10460.74640005,0.00023,2]
[311554937,1705230643510,-1943.27520113,0.00023,2]
[311554938,1705230643524,-12064.60584999,0.00023,2]
[311554939,1705230643537,-292.55581077,0.00023,2]
[311554940,1705230643556,-264.96451937,0.00023,2]
[311554941,1705230643617,-470.09468342,0.00023,2]
[311554942,1705230643637,-2446.97449234,0.00023,2]
[311554943,1705230643656,-3444.28202626,0.00023,2]
[311554963,1705230646519,-2541.10000002,0.00023,2]
[311554972,1705230646577,-18696.49766116,0.00023,2]
[311554975,1705230646590,-130884.6027709,0.00023,2]
[311554983,1705230646690,-634.40000001,0.00023,2]
[311554994,1705230668951,211.00410547,0.00022,2]
[311554995,1705230685423,662.30566825,0.00021848,2]
[311554996,1705230685444,207.46510907,0.00021848,2]
[311554997,1705230693630,1792.53489093,0.00021848,2]
[311554998,1705230693650,680.81385049,0.00021848,2]
[311554999,1705230696106,268.3291844,0.0002,2]
[311555000,1705230703027,592.85200832,0.00022078,2]
[311555001,1705230787750,150.0,0.00022,2]
[311555002,1705230836324,308.00495679,0.00022299,2]
[311555003,1705230843826,172.89,0.0002187,2]
[311555004,1705230844768,386.41,0.0002187,2]
[311555005,1705230868445,184.9,0.0001996,2]
[311555006,1705230898161,1307.73,0.00021842,2]
[311555007,1705230903448,10744.72,0.00021862,2]
[311555008,1705230916834,2328.07,0.00021996,2]
[311555009,1705230979609,200.0,0.00021817,2]
[311555010,1705231018581,409.92,0.00021808,2]
[311555011,1705231036865,5821.72,0.00021918,2]
[311555012,1705231041450,3896.74,0.00021808,2]
[311555013,1705231046560,187.78,0.00021808,2]
[311555014,1705231054109,500.0,0.00021799,2]
[311555015,1705231071666,303.27,0.0002179,2]
[311555016,1705231084261,160.34,0.00022008,2]